Cogmind - Beta 16.1 @@@ ROGUE MODE // 2026.03.24 @ 02:08:09 Player: alice_fexa Result: Destroyed by S-43 Plague with Heavy Machine Gun Performance ------------- Evolutions (7) 3500 Regions Visited (17) 3400 Robots Destroyed (158) 790 Value Destroyed (5140) 5140 Prototype IDs (30) 600 Alien Tech Used (0) 0 Bonus (11756) 11756 TOTAL SCORE: 25186 Bonus ------- Triggered High Security 500 High Alert Combat Kills 309 Follower Combat Kills 7447 Awakened Behemoth Slayer 1000 Met R17 at Cetus 500 Met R17 at Research 2000 Cogmind --------- Core Integrity 0/1300 Matter 300/300 Energy 100/100 System Corruption 7% Temperature Cool (0) Movement Core (50) Location -3/Armory Parts ------- > --- POWER (2) -------- (None) > --- PROPULSION (6) --- (None) > --- UTILITY (7) ------ (None) > --- WEAPON (6) ------- (None) > --- INVENTORY (5) ---- Centrium Medium Armor Plating Hacking Drone Bay (1/1) Advanced KE Penetrator Tesla Bomb Launcher Long-range Missile Launcher Peak State ------------ > --- POWER ------------ Quantum Reactor Meta Core > --- PROPULSION ------- Medium Treads Wheel Wheel Wheel Compact Wheel Armored Huge Wheel > --- UTILITY ---------- Huge Storage Unit Matter Compressor Experimental Matter Compressor Improved Medium Armor Plating Centrium Medium Armor Plating Advanced Remote Force Field Improved Point Defense System High-powered Tractor Beam > --- WEAPON ----------- Advanced KE Penetrator 1B-0RG's Assimilator Shock Maul > --- INVENTORY -------- Particle Reactor Centrium Heavy Treads Advanced Cooling System Experimental Energy Well IFF Parser Transmission Jammer Improved Medium Armor Plating Centrium Medium Armor Plating Medium Reflective Plating Improved Remote Shield High-powered Tractor Beam Hacking Drone Bay Advanced Variable Charge Gun Heavy Plasma Cannon Advanced KE Penetrator Advanced KE Penetrator Linear Accelerator Tesla Bomb Launcher Gamma Bomb Array Long-range Missile Launcher Long-range Missile Launcher Advanced Remote Datajack Improved Plasma Cutter CR-A16's Behemoth Slayer [Rating: 180] Favorites ----------- Power Meta Core Engine Improved Ion Engine Power Core Meta Core Reactor Quantum Reactor Propulsion Light Treads Treads Light Treads Wheel Wheel Utility Improved Heat Sink Device Improved Heat Sink Storage High-capacity Storage Unit Processor Advanced Signal Interpreter Protection Centrium Medium Armor Plating Weapon Precision Beam Rifle Energy Gun Precision Beam Rifle Energy Cannon Heavy Plasma Cannon Ballistic Gun Light Assault Rifle Launcher Gamma Bomb Array Special Weapon Advanced Remote Datajack Impact Weapon Shock Maul Piercing Weapon CR-A16's Behemoth Slayer Special Melee Weapon 1B-0RG's Assimilator Build | -11 -10 -10 -10 -8 -7 -7 -7 -7 -6 -6 -6 -6 -6 -5 -4 -3 -3 ------- Run | Yrd Mat Min Sub Mat Fac Low Low Zio Pro Fac Ext Cet Arc Fac Fac Res Arm Slots Evolved 14 | . . . . 4 2 . . . . 2 . . . 2 2 2 . Power 1 | . . . . . . . . . . . . . . 1 . . . Propulsion 4 | . . . . 2 . . . . . . . . . . 1 1 . Utility 5 | . . . . 1 1 . . . . . . . . 1 1 1 . Weapon 4 | . . . . 1 1 . . . . 2 . . . . . . . Parts Attached 133 | 6 11 2 8 21 2 6 2 2 5 17 8 7 3 5 5 14 9 Power 13 | 1 3 . 1 2 . 2 . . 1 1 . . . 1 . 1 . Engine 10 | 1 3 . 1 2 . 2 . . 1 . . . . . . . . Core 1 | . . . . . . . . . . 1 . . . . . . . Reactor 2 | . . . . . . . . . . . . . . 1 . 1 . Propulsion 32 | 2 2 . 1 6 . 1 1 . 2 4 3 3 . 2 . 3 2 Treads 16 | 2 1 . . 6 . 1 1 . 1 2 . 1 . . . . 1 Leg . | . . . . . . . . . . . . . . . . . . Wheel 16 | . 1 . 1 . . . . . 1 2 3 2 . 2 . 3 1 Hover . | . . . . . . . . . . . . . . . . . . Flight . | . . . . . . . . . . . . . . . . . . Utility 47 | 1 5 . 1 5 1 2 . 2 . 7 4 2 1 1 4 7 4 Device 19 | . . . 1 3 . 1 . 1 . 5 . . 1 1 2 2 2 Storage 10 | 1 2 . . . . . . . . 1 2 . . . . 4 . Processor 1 | . . . . . . . . . . . . . . . . 1 . Hackware . | . . . . . . . . . . . . . . . . . . Protection 17 | . 3 . . 2 1 1 . 1 . 1 2 2 . . 2 . 2 Artifact . | . . . . . . . . . . . . . . . . . . Weapon 41 | 2 1 2 5 8 1 1 1 . 2 5 1 2 2 1 1 3 3 Energy Gun 9 | . . . 1 5 1 . . . . 1 . 1 . . . . . Energy Cannon 5 | . . . 1 . . . 1 . . . 1 . . 1 . . 1 Ballistic Gun 15 | 2 1 2 3 3 . . . . . 1 . 1 1 . . . 1 Ballistic Cannon . | . . . . . . . . . . . . . . . . . . Launcher 5 | . . . . . . 1 . . 1 . . . . . 1 2 . Special Weapon 1 | . . . . . . . . . . . . . . . . . 1 Impact Weapon 2 | . . . . . . . . . . 2 . . . . . . . Slashing Weapon . | . . . . . . . . . . . . . . . . . . Piercing Weapon 3 | . . . . . . . . . 1 . . . 1 . . 1 . Special Melee Weapon 1 | . . . . . . . . . . 1 . . . . . . . Unidentified Prototypes 14 | . . . . 1 . . . 1 . 2 . 4 . 1 . 4 1 Parts Lost 20 | . . . 1 1 . . . . 1 . . 1 . . . . 16 Power 1 | . . . . . . . . . . . . . . . . . 1 Propulsion 10 | . . . 1 . . . . . 1 . . 1 . . . . 7 Utility 7 | . . . . 1 . . . . . . . . . . . . 6 Weapon 2 | . . . . . . . . . . . . . . . . . 2 Highest Loss Streak 10 | . . . 1 1 . . . . 1 . . 1 . . . . 10 To Critical Strikes 1 | . . . . . . . . . . . . . . . . . 1 Average Backups 19 | 3 13 20 18 15 14 14 15 15 15 17 24 24 24 23 23 23 22 Power 1 | . 1 2 1 1 1 1 1 . . . 2 2 2 1 1 1 . Propulsion 1 | 1 1 3 1 . . 1 1 1 1 . 3 2 2 2 2 1 1 Utility 7 | . 5 8 7 4 3 4 5 5 6 8 9 11 11 10 10 9 9 Weapon 7 | . 4 7 7 8 8 6 6 6 6 6 10 8 8 7 8 9 10 Tool/Special . | . . . . . . . . . . . . . . . . . . Unused Backups 43 | . 8 1 2 3 1 5 . 5 . 1 . 2 . 1 1 4 9 Power 5 | . 2 . . . . . . 1 . . . 1 . . . . 1 Propulsion 1 | . 1 . . . . . . . . . . . . . . . . Utility 12 | . 2 . 1 1 . 2 . 2 . . . 1 . . 1 1 1 Weapon 23 | . 3 1 1 2 1 3 . 2 . 1 . . . 1 . 2 6 Tool/Special 2 | . . . . . . . . . . . . . . . . 1 1 Average Slot Usage (%) 87 | . 98 100 99 98 99 100 100 100 98 87 69 71 71 74 76 78 70 Engine 4 | . 14 14 14 8 7 7 7 7 7 5 . . . . . . . Core 1 | . . . . . . . . . . . 5 5 5 5 4 4 3 Reactor 1 | . . . . . . . . . . . . . . 5 4 4 3 Treads 15 | . 21 14 13 34 30 30 30 30 28 10 5 5 5 5 4 4 . Wheel 9 | . 6 14 14 . . . . . . 8 16 15 16 15 17 19 20 Device 11 | . . . 12 13 15 15 15 15 15 13 12 5 5 11 16 12 13 Storage 8 | . 14 14 14 9 7 7 7 7 7 5 7 9 9 7 4 11 9 Protection 7 | . 12 14 1 4 7 7 7 7 7 5 5 12 11 10 9 8 4 Energy Gun 11 | . . . 4 15 29 29 29 30 29 21 . . . . . . . Ballistic Gun 5 | . 28 28 21 11 . . . . . 4 . 1 . 3 4 3 . Impact Weapon 2 | . . . . . . . . . . 5 5 5 5 5 4 4 3 Special Melee Weapon 1 | . . . . . . . . . . . 5 5 5 5 4 4 3 Peak Build Rating 180 | 6 12 12 20 36 43 49 51 54 57 125 135 157 144 157 168 180 180 Average Rating 89 | 4 9 11 15 31 42 47 49 48 52 79 130 136 143 155 164 176 164 On Entrance 76 | . 6 11 12 20 36 43 49 49 49 57 125 129 142 144 156 168 180 Avg Prop Armor Cover (%) 6 | . 10 10 12 15 . . . . 12 10 5 4 4 4 3 3 7 Naked Turns 16 | . . . . . . . . . . . . . . . . . 16 Heaviest Build 219 | 10 54 54 58 62 60 65 72 68 77 159 168 173 171 192 196 219 218 Greatest Support 92 | 40 40 10 10 80 80 82 82 82 92 48 54 54 54 54 58 74 74 Greatest Overweight (x) 8 | . 5 5 5 6 . . . . 2 4 3 6 3 3 4 3 8 Average Overweight (x) 1 | . 2 5 4 . . . . . . 2 2 3 2 3 3 2 2 Largest Inventory Capacity 25 | 8 20 20 20 20 20 20 20 20 20 25 25 25 25 25 25 25 25 Average Capacity 21 | 7 15 20 20 20 20 20 20 20 20 21 25 25 25 25 25 25 24 Most Carried 25 | 5 20 20 20 20 20 20 20 20 20 25 25 25 25 25 25 25 25 Average Carried 21 | 3 13 19 19 19 18 19 20 19 19 21 24 24 24 24 24 24 23 Final Capacity 25 | 8 20 20 20 20 20 20 20 20 20 25 25 25 25 25 25 25 5 Final Carried 25 | 5 20 20 20 20 20 20 20 20 20 25 25 25 25 25 25 25 5 Class Distribution -------------------- 36% | Scavenger-Mutant 31% | Scavenger-Tank 19% | Mutant 6% | Scavenger-Executioner 3% | Scavenger-Gunner Dominant Class ---------------- Mutant | -10/Materials Mutant | -10/Mines Mutant | -10/Subcaves Scavenger-Gunner | -8/Materials Scavenger-Tank | -7/Factory Scavenger-Tank | -7/Lower Caves Scavenger-Tank | -7/Lower Caves Scavenger-Tank | -7/Zion Scavenger-Tank | -6/Proximity Caves Scavenger-Executioner | -6/Factory Scavenger-Mutant | -6/Extension Scavenger-Mutant | -6/Cetus Scavenger-Mutant | -6/Archives Scavenger-Mutant | -5/Factory Scavenger-Mutant | -4/Factory Scavenger-Mutant | -3/Research Scavenger-Mutant | -3/Armory Resources | -11 -10 -10 -10 -8 -7 -7 -7 -7 -6 -6 -6 -6 -6 -5 -4 -3 -3 ----------- Run | Yrd Mat Min Sub Mat Fac Low Low Zio Pro Fac Ext Cet Arc Fac Fac Res Arm Matter Collected 20508 | 264 374 34 162 509 . 103 91 30 83 1030 3312 296 544 1158 1381 5960 5177 Remotely 17204 | . . . . . . . . . . 83 3093 296 514 1158 1381 5960 4719 Salvage Created 9100 | 121 456 51 85 944 . 250 768 . 642 1686 1507 107 308 665 723 449 338 Parts 281 | 7 26 1 5 47 . 17 9 . 23 52 21 5 25 9 14 10 10 Haulers Intercepted 9 | . 2 . . 1 . . . . . 1 2 . . 2 1 . . Recyclers Shooed 6 | . . . . 1 . . . . . 2 . . . . 2 1 . Parts Field Recycled . | . . . . . . . . . . . . . . . . . . Retrieved Matter . | . . . . . . . . . . . . . . . . . . Parts Self-Destructed 60 | . . . . . . 15 14 . 31 . . . . . . . . Prevented . | . . . . . . . . . . . . . . . . . . Parts Restored . | . . . . . . . . . . . . . . . . . . Kills | -11 -10 -10 -10 -8 -7 -7 -7 -7 -6 -6 -6 -6 -6 -5 -4 -3 -3 ------- Run | Yrd Mat Min Sub Mat Fac Low Low Zio Pro Fac Ext Cet Arc Fac Fac Res Arm Combat Hostiles Destroyed 87 | . 7 1 2 14 . 8 3 . 15 22 2 . . 1 4 4 4 Melee 2 | . . . . . . . . . 1 . 1 . . . . . . Guns 61 | . 7 1 2 14 . 4 3 . 8 17 . . . 1 3 1 . AOE 18 | . . . . . . 3 . . 4 4 . . . . 1 3 3 Classes Destroyed 18 | 2 7 . . 4 . 1 . . 2 2 . . . . . . . Worker 5 | . . . . 1 . . . . . 2 . . . . 1 1 . Builder 9 | . 1 . . 1 . . . . . 2 3 . . . 2 . . Tunneler 4 | 1 . . . . . . . . . 1 2 . . . . . . Hauler 10 | . 2 . . 1 . . . . . 1 2 . . 2 1 1 . Recycler 21 | 1 . . . 1 . . . . . 4 8 . . 3 3 1 . Mechanic 1 | . . . . . . . . . . 1 . . . . . . . Operator 13 | . 1 . . . . . . . . 1 1 . 9 . . . 1 Drone 2 | . . . . . . . . . 2 . . . . . . . . Watcher 6 | . 1 . . 2 . . . . . . 2 . . 1 . . . Swarmer 18 | . 1 . . . . 6 . . 5 5 . . . . . 1 . Grunt 39 | . 5 1 . 7 . . 3 . 4 10 1 . . . 1 3 4 Brawler 4 | . . . . 1 . . . . . 2 . . . . 1 . . Duelist 3 | . . . . . . . . . 2 1 . . . . . . . Sentry 9 | . . . . 5 . 1 . . 1 1 . 1 . . . . . Hunter 3 | . . . . 1 . . . . . 2 . . . . . . . Programmer 4 | . . . . . . . . . . 1 . . . 1 2 . . Behemoth 2 | . . . . . . 1 . . 1 . . . . . . . . Subdweller 3 | . 1 . 2 . . . . . . . . . . . . . . Thug 1 | . . . . . . . . . . . 1 . . . . . . Butcher 1 | . . . . . . . . . . . . 1 . . . . . Best Kill Streak 8 | 1 2 1 1 3 . 3 2 . 4 8 3 . 3 3 2 2 4 Combat Bots Only 7 | . 2 1 1 3 . 3 2 . 4 7 2 . . 1 1 2 4 Max Kills in Single Turn 4 | 1 2 1 1 2 . 3 1 . 4 2 1 2 1 1 1 2 2 Gunslinging 1 | . . . . 1 . . . . . . . . . . . . . Exploded 4 | . . . . . . 3 . . 4 2 . . . . 1 2 2 Melee 1 | . . . . . . . . . 1 . 1 . . . . . . Uniques/NPCs Destroyed . | . . . . . . . . . . . . . . . . . . Combat | -11 -10 -10 -10 -8 -7 -7 -7 -7 -6 -6 -6 -6 -6 -5 -4 -3 -3 -------- Run | Yrd Mat Min Sub Mat Fac Low Low Zio Pro Fac Ext Cet Arc Fac Fac Res Arm Hostile Shots Fired 679 | . 53 7 23 47 . 47 14 . 46 98 44 13 . 8 34 47 198 Missed 226 | . 11 . 5 11 . 22 5 . 21 35 15 10 . 4 6 29 52 Hits 453 | . 42 7 18 36 . 25 9 . 25 63 29 3 . 4 28 18 146 Melee 7 | . . . . . . . . . 2 1 . . . . . 1 3 Projectile 446 | . 42 7 18 36 . 25 9 . 23 62 29 3 . 4 28 17 143 AOE 9 | . . . . . . . . . . . . . . . . 3 6 Critical Strikes 21 | . 2 . . 4 . . . . . 1 1 1 . 1 1 . 10 Part Disruptions 1 | . . . . . . . . . . 1 . . . . . . . Damage Taken 8866 | . 490 107 364 536 . 283 158 . 382 1082 311 163 19 192 619 598 3562 Core 1919 | . 99 . 75 48 . 23 . . 77 104 52 28 . 77 31 168 1137 Absorbed by Shields 799 | . . . . . . . . . . . 69 . . . . 92 638 Ignored by Resistances 37 | . . . . . . . . . . 16 21 . . . . . . Regen/Repaired (Parts) 658 | . . . . 47 . . . 44 . 166 121 . . . 36 31 213 Core Remaining (%) 81 | 100 . . 30 91 . . . . 85 . . . 78 92 97 . . Volleys Fired 336 | 2 57 8 15 46 . 14 17 . 19 53 . 3 5 18 34 31 14 Largest 6 | 2 2 2 2 3 . 4 4 . 4 6 . 1 1 1 1 1 1 Hottest 333 | 40 40 40 105 183 . 244 244 . 244 333 . 63 35 90 43 90 120 Shots Fired 796 | 4 114 16 29 134 . 42 44 . 73 233 . 5 5 18 34 31 14 Gun 735 | 4 114 16 27 134 . 38 36 . 72 230 . . 5 8 32 13 6 Cannon 43 | . . . 2 . . . 8 . . . . 5 . 10 . 14 4 Launcher 17 | . . . . . . 4 . . 1 3 . . . . 2 4 3 Special 1 | . . . . . . . . . . . . . . . . . 1 Kinetic 356 | 4 114 16 27 92 . . . . . 39 . . 5 8 32 13 6 Thermal 417 | . . . 2 42 . 38 44 . 72 191 . . . 10 . 14 4 Explosive 11 | . . . . . . 4 . . 1 3 . . . . 2 1 . Electromagnetic 11 | . . . . . . . . . . . . 5 . . . 3 3 Robot Hit Streak 32 | 1 17 10 11 17 . 13 13 . 32 20 . 5 4 8 5 9 3 Robot Miss Streak 7 | 1 7 2 1 3 . 1 2 . 3 5 . . 1 2 3 4 6 Penetration Max 1 | . . . . . . . . . . . . . . 1 1 1 . Secondary Targets 4 | . . . . 1 . . . . 2 1 . . . . . . . Max Gunslinging Chain 1 | . . . . 1 . . . . 1 1 . . . . . . . Shots Hit Robots 609 | 2 75 12 22 92 . 27 26 . 53 174 28 3 17 13 33 24 8 Core Hits 296 | 2 26 6 7 40 . 19 12 . 26 95 3 3 6 4 12 24 11 Critical Kills 4 | 1 . . . . . . . . . 1 . . . . 1 1 . Critical Parts Destroyed 28 | . . . . 1 . . . . . 1 11 . . 2 7 4 2 Critical Strikes 58 | 1 . . . 2 . . . . 7 16 12 1 2 2 8 5 2 Burn 21 | . . . . 1 . . . . 6 14 . . . . . . . Destroy 11 | 1 . . . 1 . . . . . . . . . . 5 3 1 Corrupt 1 | . . . . . . . . . . . . 1 . . . . . Smash 21 | . . . . . . . . . . 2 11 . . 2 3 2 1 Impale 4 | . . . . . . . . . 1 . 1 . 2 . . . . Melee Attacks 108 | . . . . . . . . . 3 8 44 . 16 10 8 4 15 Impact 85 | . . . . . . . . . . 8 40 . 3 9 8 4 13 Slashing . | . . . . . . . . . . . . . . . . . . Piercing 23 | . . . . . . . . . 3 . 4 . 13 1 . . 2 Sneak Attacks 48 | . . . . . . . . . . 5 18 . 10 5 8 2 . Combat Hostiles . | . . . . . . . . . . . . . . . . . . Follow-up Attacks 3 | . . . . . . . . . . . . . 3 . . . . Damage Inflicted 16877 | 18 617 89 223 1457 . 750 595 . 1147 3911 2494 409 977 788 1690 1191 521 Guns 8324 | 18 617 89 223 1451 . 466 404 . 891 2962 . . 100 185 723 131 64 Cannons 655 | . . . . . . . 191 . . . . 112 . . . 352 . Explosions 2277 | . . . . . . 284 . . 223 379 . 297 . . 228 557 309 Melee 5589 | . . . . . . . . . 33 544 2494 . 877 603 739 151 148 Ramming 32 | . . . . 6 . . . . . 26 . . . . . . . Kinetic 3582 | 18 617 89 223 912 . . . . . 520 . . 100 185 723 131 64 Thermal 5582 | . . . . 539 . 466 595 . 891 2442 . 297 . . . 352 . Explosive 1223 | . . . . . . 284 . . 223 379 . . . . 228 109 . Electromagnetic 869 | . . . . . . . . . . . . 112 . . . 448 309 Impact 4665 | . . . . . . . . . . 544 2314 . 166 603 739 151 148 Slashing . | . . . . . . . . . . . . . . . . . . Piercing 924 | . . . . . . . . . 33 . 180 . 711 . . . . Highest Corruption 7 | . . . . . . . . . . 3 3 3 3 . 3 1 7 Average Corruption 2 | . . . . . . . . . . 2 3 3 2 . 2 1 1 Corruption Purged 3 | . . . . . . . . . . . . . 3 . . . . Corruption Blocked . | . . . . . . . . . . . . . . . . . . Effects 61 | . . . . . . . . . . 5 36 5 3 . 4 . 8 Message Errors 20 | . . . . . . . . . . . 11 1 2 . 1 . 5 Matter Fused 15 | . . . . . . . . . . 3 9 1 1 . 1 . . Heat Flow Errors 9 | . . . . . . . . . . . 6 . . . 1 . 2 Energy Discharges 4 | . . . . . . . . . . . 3 . . . . . 1 Parts Fused 2 | . . . . . . . . . . . 2 . . . . . . Data Loss (minor) 7 | . . . . . . . . . . 1 5 . . . 1 . . Data Loss (major) 2 | . . . . . . . . . . 1 . 1 . . . . . Misfires 2 | . . . . . . . . . . . . 2 . . . . . Overload Shots . | . . . . . . . . . . . . . . . . . . Overflow Damage 3407 | . . . . . . 13 28 . . 230 1752 . 398 374 474 78 60 Projectiles 38 | . . . . . . . 28 . . . . . . . . 10 . Explosions 52 | . . . . . . 13 . . . 21 . . . . . 18 . Melee 3317 | . . . . . . . . . . 209 1752 . 398 374 474 50 60 Knockbacks 24 | . . . . . . . . . . 2 11 . 1 2 4 2 2 Impact 24 | . . . . . . . . . . 2 11 . 1 2 4 2 2 Kinetic . | . . . . . . . . . . . . . . . . . . Secondary . | . . . . . . . . . . . . . . . . . . Self-Inflicted Damage 47 | . . . . . . . . . . 47 . . . . . . . Shots 1 | . . . . . . . . . . 1 . . . . . . . Rammed 2 | . . . . 1 . . . . . 1 . . . . . . . Targets Rammed 2 | . . . . 1 . . . . . 1 . . . . . . . Kicked . | . . . . . . . . . . . . . . . . . . Crushed . | . . . . . . . . . . . . . . . . . . Highest Temperature 369 | . 132 105 26 96 . 189 274 . 369 294 236 36 . 216 114 144 245 Average Temperature 72 | . 36 49 10 32 . 66 83 . 111 92 97 15 . 73 61 60 80 Received Heat Transfer 1857 | . 261 63 108 324 . 18 81 . 123 279 95 18 9 63 . 26 389 Effects 3 | . . . . . . . 2 . 1 . . . . . . . . Shutdowns 1 | . . . . . . . . . 1 . . . . . . . . Interference 2 | . . . . . . . 2 . . . . . . . . . . Siege Activations . | . . . . . . . . . . . . . . . . . . Martial Activations . | . . . . . . . . . . . . . . . . . . Shielding Activations . | . . . . . . . . . . . . . . . . . . Robots Disrupted . | . . . . . . . . . . . . . . . . . . Combat Hostiles . | . . . . . . . . . . . . . . . . . . Robots Corrupted 31 | . . . . . . . . . . 2 14 . 2 6 4 1 2 Combat Hostiles 1 | . . . . . . . . . . . . . . . . . 1 Parts Fried 62 | . . . . . . . . . . 8 28 . 3 8 7 . 8 Impact Corruptions 84 | . . . . . . . . . . 8 43 . 4 11 14 2 2 Robots Melted 5 | . . . . . . 1 . . 2 2 . . . . . . . Combat Hostiles 4 | . . . . . . 1 . . 2 1 . . . . . . . Parts Melted 47 | . . . 2 5 . 5 . . 11 23 . . . . . 1 . Heat Transferred 12964 | . . . . 1295 . 999 1188 . 2405 6290 . 250 . . . 537 . Parts Sabotaged . | . . . . . . . . . . . . . . . . . . Parts Stolen . | . . . . . . . . . . . . . . . . . . Parts Stripped . | . . . . . . . . . . . . . . . . . . Power Chain Reactions 2 | . . . . . . . . . . . . 1 . . . . 1 Alert | -11 -10 -10 -10 -8 -7 -7 -7 -7 -6 -6 -6 -6 -6 -5 -4 -3 -3 ------- Run | Yrd Mat Min Sub Mat Fac Low Low Zio Pro Fac Ext Cet Arc Fac Fac Res Arm Maximum Alert Level 5 | . . . . . . . . . . 1 3 2 1 3 3 3 5 Low Security (%) 41 | 100 100 100 . 100 100 . . . . 27 52 . 26 17 . . . Level 1 15 | . . . . . . . . . . 72 13 1 73 6 25 . . Level 2 21 | . . . . . . . . . . . 28 98 . 69 48 36 6 Level 3 15 | . . . . . . . . . . . 5 . . 6 25 63 19 Level 4 2 | . . . . . . . . . . . . . . . . . 28 Level 5 . | . . . . . . . . . . . . . . . . . 11 High Security 2 | . . . . . . . . . . . . . . . . . 34 Max Security . | . . . . . . . . . . . . . . . . . . Peak Influence 2391 | 5 130 62 . 97 1 . . . . 323 805 527 286 805 1013 1097 2391 Initial 571 | . . . . . 1 . . . . 102 110 449 186 57 382 517 571 Average 419 | 1 34 8 . 30 . . . . . 221 266 473 225 494 546 756 1570 Influence Increases 10539 | 10 313 108 . 459 . 195 90 . 477 651 1583 268 193 1101 972 1312 2807 Destroy 0b10 Robot/C 4780 | . 120 80 . 280 . 160 60 . 360 440 660 140 60 420 300 600 1100 Destroy 0b10 Robot/NC 430 | 10 25 . . 30 . . 5 . 10 60 110 10 45 60 40 10 15 Destroy Leader 816 | . 36 20 . 96 . 20 10 . 50 82 76 . . 88 54 110 174 Allied During Kill 3217 | . . 8 . . . . . . 42 2 655 114 87 454 216 520 1119 Successful Hack 148 | . 27 . . 34 . . . . . 44 16 . . . 20 . 7 Disable Machine 240 | . . . . 15 . . . . . . . . . 45 90 . 90 Anti-Garrison Action 150 | . . . . . . . . . . . . . . . 150 . . Destroy Structure 263 | . . . . 4 . . . . . 23 21 4 1 34 102 42 32 Lose Combat Pursuer 495 | . 105 . . . . 15 15 . 15 . 45 . . . . 30 270 Influence Decreases 8231 | 10 313 104 4 455 4 195 90 . 314 587 1007 604 495 485 767 1209 1588 Entered New Map 2313 | . . . 3 . 3 . . . . 61 117 354 281 108 399 469 518 Time Decay 4438 | 10 313 64 1 415 1 195 90 . 244 526 590 160 214 317 368 620 310 Lost Part 190 | . . . . 10 . . . . 10 . . 10 . . . . 160 Lost Ally 1260 | . . 40 . . . . . . 60 . 300 80 . 60 . 120 600 Purge Threat 30 | . . . . 30 . . . . . . . . . . . . . Squads Dispatched 57 | . 3 . . 2 . . . . . 8 4 . . 7 7 6 20 Investigation 7 | . . . . . . . . . . 2 2 . . 1 . 2 . Extermination 6 | . . . . . . . . . . 2 . . . . 2 . 2 Reinforcement 17 | . 3 . . 2 . . . . . 2 1 . . 3 1 4 1 Assault 23 | . . . . . . . . . . . 1 . . 1 4 . 17 Garrison 4 | . . . . . . . . . . 2 . . . 2 . . . Intercept . | . . . . . . . . . . . . . . . . . . Searches Triggered . | . . . . . . . . . . . . . . . . . . Construction Impeded 2 | . . . . 1 . . . . . 1 . . . . . . . Haulers Reinforced 5 | . . . . . . . . . . 1 . . . 1 . 3 . Active Scanning Responses . | . . . . . . . . . . . . . . . . . . Cargo Convoy Interrupts . | . . . . . . . . . . . . . . . . . . Stealth | -11 -10 -10 -10 -8 -7 -7 -7 -7 -6 -6 -6 -6 -6 -5 -4 -3 -3 --------- Run | Yrd Mat Min Sub Mat Fac Low Low Zio Pro Fac Ext Cet Arc Fac Fac Res Arm Distress Signals 16 | . . . . 2 . . . . . . 3 3 . 1 . 4 3 Communications Jammed 250 | . . . . . . . . . . . . . . 1 1 . 248 Distress Signals 249 | . . . . . . . . . . . . . . 1 . . 248 Times Spotted 353 | . 19 4 2 17 . 10 3 . 20 25 46 10 12 24 14 46 101 Peak Tracking Total 18 | . 5 2 2 3 . 3 3 . 4 6 7 5 2 6 3 7 18 Tactical Retreats 19 | . 3 . . . . 1 1 . 1 . 2 . . . . 2 9 Traps | -11 -10 -10 -10 -8 -7 -7 -7 -7 -6 -6 -6 -6 -6 -5 -4 -3 -3 ------- Run | Yrd Mat Min Sub Mat Fac Low Low Zio Pro Fac Ext Cet Arc Fac Fac Res Arm Traps Triggered 1 | . . . . . . . . . . . 1 . . . . . . Indirectly . | . . . . . . . . . . . . . . . . . . Trap Hack Attempts . | . . . . . . . . . . . . . . . . . . Triggered . | . . . . . . . . . . . . . . . . . . Disarmed . | . . . . . . . . . . . . . . . . . . Reprogrammed . | . . . . . . . . . . . . . . . . . . Reused . | . . . . . . . . . . . . . . . . . . Traps Extracted . | . . . . . . . . . . . . . . . . . . Installed . | . . . . . . . . . . . . . . . . . . Triggered . | . . . . . . . . . . . . . . . . . . Machines | -11 -10 -10 -10 -8 -7 -7 -7 -7 -6 -6 -6 -6 -6 -5 -4 -3 -3 ---------- Run | Yrd Mat Min Sub Mat Fac Low Low Zio Pro Fac Ext Cet Arc Fac Fac Res Arm Machines Disabled 19 | . . . 1 1 . . . . . . 1 . . 3 7 . 6 Max in Single Turn 1 | . . . 1 1 . . . . . . . . . 1 1 . 1 Garrison Access 4 | . . . . 1 . . . . . 1 . . . . 1 1 . Machines Repaired . | . . . . . . . . . . . . . . . . . . Machines Dismantled . | . . . . . . . . . . . . . . . . . . Machines Sabotaged . | . . . . . . . . . . . . . . . . . . Overloaded Fab Kills . | . . . . . . . . . . . . . . . . . . Hacking | -11 -10 -10 -10 -8 -7 -7 -7 -7 -6 -6 -6 -6 -6 -5 -4 -3 -3 --------- Run | Yrd Mat Min Sub Mat Fac Low Low Zio Pro Fac Ext Cet Arc Fac Fac Res Arm Machines Accessed 45 | . 6 . 2 9 . 1 2 . . 10 6 . . 1 4 3 1 Terminals 22 | . 5 . . 6 . . . . . 4 6 . . . . . 1 Fabricators 2 | . . . . . . . . . . 2 . . . . . . . Repair Stations 2 | . . . . 1 . . . . . 1 . . . . . . . Recycling Units 8 | . 1 . . 1 . . . . . 2 . . . . 2 2 . Scanalyzers 1 | . . . . . . . . . . . . . . . 1 . . Garrison Access 5 | . . . . 1 . . . . . 1 . . . 1 1 1 . Total Hacks 112 | . 13 . 5 31 . 1 5 . . 25 11 . . 4 9 6 2 Successful 62 | . 9 . 5 19 . 1 5 . . 12 5 . . . 4 1 1 Failed 49 | . 4 . . 12 . . . . . 13 6 . . 4 4 5 1 Catastrophic 5 | . . . . . . . . . . 1 . . . 1 2 1 . Database Lockouts 1 | . . . . . . . . . . . . . . . 1 . . Manual 40 | . 12 . . 18 . . . . . 8 2 . . . . . . Terminals 61 | . 12 . . 24 . . . . . 12 11 . . . . . 2 Fabricators 7 | . . . . . . . . . . 7 . . . . . . . Repair Stations 4 | . . . . 2 . . . . . 2 . . . . . . . Recycling Units 14 | . 1 . . 4 . . . . . 2 . . . . 4 3 . Scanalyzers 4 | . . . . . . . . . . . . . . . 4 . . Garrison Access 11 | . . . . 1 . . . . . 2 . . . 4 1 3 . Terminal Hacks 26 | . . . 5 8 . 1 5 . . 2 4 . . . . . 1 Record 8 | . . . 4 . . . 4 . . . . . . . . . . Part Schematic 1 | . . . . . . . . . . 1 . . . . . . . Robot Analysis 1 | . . . . . . . . . . 1 . . . . . . . Prototype ID Bank 1 | . . . . 1 . . . . . . . . . . . . . Open Door 7 | . . . . . . 1 1 . . . 4 . . . . . 1 Branch Access Points 1 | . . . . 1 . . . . . . . . . . . . . Terminal Index 1 | . . . . 1 . . . . . . . . . . . . . Alert Level 1 | . . . . 1 . . . . . . . . . . . . . Unreport Threat 1 | . . . . 1 . . . . . . . . . . . . . Locate Traps 2 | . . . . 2 . . . . . . . . . . . . . Zone Layout 1 | . . . . 1 . . . . . . . . . . . . . Proto ID Catalog 1 | . . . 1 . . . . . . . . . . . . . . Fabricator Hacks 3 | . . . . . . . . . . 3 . . . . . . . Network Status 1 | . . . . . . . . . . 1 . . . . . . . Load Schematic 2 | . . . . . . . . . . 2 . . . . . . . Repair Station Hacks 4 | . . . . 2 . . . . . 2 . . . . . . . Scan Component 2 | . . . . 1 . . . . . 1 . . . . . . . Repair 2 | . . . . 1 . . . . . 1 . . . . . . . Recycling Unit Hacks 4 | . 1 . . . . . . . . 1 . . . . 2 . . Retrieve Components 4 | . 1 . . . . . . . . 1 . . . . 2 . . Scanalyzer 2 | . . . . . . . . . . . . . . . 2 . . Retrieve Study 2 | . . . . . . . . . . . . . . . 2 . . Garrison Access Hacks 3 | . . . . 1 . . . . . 1 . . . . . 1 . Seal Access 3 | . . . . 1 . . . . . 1 . . . . . 1 . Unauthorized Hacks 20 | . 8 . . 8 . . . . . 3 1 . . . . . . Terminals 19 | . 8 . . 8 . . . . . 2 1 . . . . . . Botnet 8 | . 3 . . 2 . . . . . 2 1 . . . . . . Operators 1 | . . . . 1 . . . . . . . . . . . . . Skim 10 | . 5 . . 5 . . . . . . . . . . . . . Fabricators 1 | . . . . . . . . . . 1 . . . . . . . Haulers 1 | . . . . . . . . . . 1 . . . . . . . Repair Stations . | . . . . . . . . . . . . . . . . . . Recycling Units . | . . . . . . . . . . . . . . . . . . Scanalyzers . | . . . . . . . . . . . . . . . . . . Garrison Access . | . . . . . . . . . . . . . . . . . . Data Cores Recovered 2 | . 1 . . . . . . . . 1 . . . . . . . Used 1 | . . . . . . . . . . 1 . . . . . . . Hacking Detections 31 | . 6 . . 6 . . . . . 9 3 . . 1 3 3 . Full Trace Events 6 | . . . . . . . . . . 2 2 . . 1 . 1 . Feedback Events . | . . . . . . . . . . . . . . . . . . Feedback Blocked . | . . . . . . . . . . . . . . . . . . Robot Schematics Acquired . | . . . . . . . . . . . . . . . . . . Robots Built . | . . . . . . . . . . . . . . . . . . Authchips . | . . . . . . . . . . . . . . . . . . Time . | . . . . . . . . . . . . . . . . . . Total Robot Build Rating . | . . . . . . . . . . . . . . . . . . Part Schematics Acquired 1 | . . . . . . . . . . 1 . . . . . . . Parts Built . | . . . . . . . . . . . . . . . . . . Authchips . | . . . . . . . . . . . . . . . . . . Time . | . . . . . . . . . . . . . . . . . . Total Part Build Rating . | . . . . . . . . . . . . . . . . . . Part Studies Acquired 2 | . . . . . . . . . . . . . . . 2 . . Parts Repaired 2 | . . . . 1 . . . . . 1 . . . . . . . Time 76 | . . . . 32 . . . . . 44 . . . . . . . Parts Recycled . | . . . . . . . . . . . . . . . . . . Recycled Matter . | . . . . . . . . . . . . . . . . . . Retrieved Matter . | . . . . . . . . . . . . . . . . . . Retrieved Components 7 | . 2 . . . . . . . . 1 . . . . 4 . . Parts Scanalyzed . | . . . . . . . . . . . . . . . . . . Part Schematics Acquired . | . . . . . . . . . . . . . . . . . . Parts Damaged . | . . . . . . . . . . . . . . . . . . Bothacking | -11 -10 -10 -10 -8 -7 -7 -7 -7 -6 -6 -6 -6 -6 -5 -4 -3 -3 ------------ Run | Yrd Mat Min Sub Mat Fac Low Low Zio Pro Fac Ext Cet Arc Fac Fac Res Arm Used RIF Installer . | . . . . . . . . . . . . . . . . . . Robots Hacked 1 | . . . . . . . . . . . . . . . . . 1 Non-combat . | . . . . . . . . . . . . . . . . . . Combat 1 | . . . . . . . . . . . . . . . . . 1 Robot Hacks Applied 1 | . . . . . . . . . . . . . . . . . 1 parse_system 1 | . . . . . . . . . . . . . . . . . 1 Relay Couplers Released 2 | . . . . . . . . . . . . . . . 2 . . Machine Destruction 2 | . . . . . . . . . . . . . . . 2 . . Fabnet Peak Effective % . | . . . . . . . . . . . . . . . . . . Robots Rewired 14 | . . . . . . . . . . . 12 . . . . . 2 Allies Hacked 5 | . . . . . . . . . . . . . . . 1 1 3 Hacks Repelled . | . . . . . . . . . . . . . . . . . . Allies | -11 -10 -10 -10 -8 -7 -7 -7 -7 -6 -6 -6 -6 -6 -5 -4 -3 -3 -------- Run | Yrd Mat Min Sub Mat Fac Low Low Zio Pro Fac Ext Cet Arc Fac Fac Res Arm Total Allies 37 | . . 3 . . . . . 4 . . 18 . . . . . 12 Largest Group 10 | . . 3 . . . . . 4 4 . 8 6 2 2 . . 10 Highest-Rated Group 481 | . . 40 . . . . . 126 126 . 368 190 73 73 . . 481 Highest-Rated Ally 159 | . . 16 . . . . . 33 33 . 159 39 39 39 . . 58 Total Orders 39 | . . . . . . . . . . 2 12 . 2 4 6 5 8 STAY 17 | . . . . . . . . . . 1 6 . 1 2 2 1 4 FOLLOW 16 | . . . . . . . . . . 1 4 . 1 2 2 2 4 DROP 1 | . . . . . . . . . . . . . . . . 1 . RETURN 5 | . . . . . . . . . . . 2 . . . 2 1 . Ally Attacks 1193 | . . 15 . . . . . . 56 . 218 66 18 105 78 168 469 Total Damage 31089 | . . 157 . . . . . . 839 . 5099 2082 560 3396 2301 4598 12057 Kills 178 | . . 3 . . . . . . 5 . 36 10 3 26 13 27 55 Allies Corrupted 6 | . . . . . . . . . . . . . . 1 . 1 4 Allies Melted 4 | . . . . . . . . . 1 . 1 . . 1 . . 1 Borg Created 40 | . . . . . . . . . . 3 9 1 1 3 2 8 13 Largest Collective 8 | . . . . . . . . . . 3 7 5 6 6 7 8 7 Intel | -11 -10 -10 -10 -8 -7 -7 -7 -7 -6 -6 -6 -6 -6 -5 -4 -3 -3 ------- Run | Yrd Mat Min Sub Mat Fac Low Low Zio Pro Fac Ext Cet Arc Fac Fac Res Arm Active Infowar (turns) 6951 | . . . 499 63 . 410 289 . . 144 1906 . . 702 859 1201 878 IFF 4922 | . . . . . . . . . . 144 1906 . . 702 801 1201 168 Seismic 562 | . . . 499 63 . . . . . . . . . . . . . Jamming 2604 | . . . . . . 410 289 . . . . . . 295 739 . 871 Robot Analysis Total 1 | . . . . . . . . . . 1 . . . . . . . Derelict Logs Recovered 8 | . . 2 . . . 2 1 1 2 . . . . . . . . Drone Launches 5 | . . . . . . . . . . . 2 . . . 2 1 . Drone Recoveries 5 | . . . . . . . . . . . 2 . . . 2 1 . Exploration | -11 -10 -10 -10 -8 -7 -7 -7 -7 -6 -6 -6 -6 -6 -5 -4 -3 -3 ------------- Run | Yrd Mat Min Sub Mat Fac Low Low Zio Pro Fac Ext Cet Arc Fac Fac Res Arm Turns Passed 17755 | 92 1335 585 544 1308 194 858 965 2032 834 1462 2072 320 459 703 859 2095 1038 Spaces Moved 9478 | 47 630 336 301 553 119 488 493 1274 446 779 1113 153 228 378 515 1027 598 Core 18 | 3 . . . . . . . . . . . . . . . . 15 Treads 3660 | 44 312 . . 523 119 488 493 1274 405 2 . . . . . . . Legs . | . . . . . . . . . . . . . . . . . . Wheels 5800 | . 318 336 301 30 . . . . 41 777 1113 153 228 378 515 1027 583 Hover . | . . . . . . . . . . . . . . . . . . Flight . | . . . . . . . . . . . . . . . . . . Fastest Speed 50 | 50 155 155 140 155 160 156 156 156 130 116 123 138 123 131 122 106 50 Average Speed 140 | 152 157 155 153 159 160 156 156 156 159 133 129 138 137 132 122 112 115 Slowest Speed 320 | 160 160 155 155 170 160 160 156 156 235 320 138 190 138 138 146 122 250 Overloaded Moves . | . . . . . . . . . . . . . . . . . . Propulsion Burnouts . | . . . . . . . . . . . . . . . . . . Robots Hopped . | . . . . . . . . . . . . . . . . . . Potential Cave-ins . | . . . . . . . . . . . . . . . . . . Cave-ins Triggered . | . . . . . . . . . . . . . . . . . . Exploration Rate (%) 48 | 4 88 84 12 36 4 69 61 82 63 13 82 76 98 9 11 27 46 Regions Visited 17 Branch Regions 10 Pre-discovered Areas 9 | . 1 1 . 1 . . 1 4 1 . . . . . . . . Known Exits Taken 9 | . 1 1 1 1 1 . . . 1 1 . . 1 . . 1 . Unknown Exits Taken 8 | 1 . . . . . 1 1 1 . . 1 1 . 1 1 . . Scrap Searched 13 | . . 1 3 . . 3 2 3 1 . . . . . . . . Spaces Dug 71 | . . . . . . 11 1 . 7 7 9 . . 8 . 19 9 Terrain Destroyed 141 | . . . . . . 28 2 . 7 19 9 5 2 15 15 20 19 Melee 21 | . . . . . . . . . . 2 9 . . 2 . 1 7 Projectile 32 | . . . . . . . 2 . . . . . 2 13 5 2 8 AOE 88 | . . . . . . 28 . . 7 17 . 5 . . 10 17 4 Terrain Rammed . | . . . . . . . . . . . . . . . . . . Walls Destroyed . | . . . . . . . . . . . . . . . . . . Machines Disabled . | . . . . . . . . . . . . . . . . . . Actions | -11 -10 -10 -10 -8 -7 -7 -7 -7 -6 -6 -6 -6 -6 -5 -4 -3 -3 --------- Run | Yrd Mat Min Sub Mat Fac Low Low Zio Pro Fac Ext Cet Arc Fac Fac Res Arm Total 13077 | 61 890 391 359 892 123 559 658 1325 513 1056 1648 261 344 536 680 1912 869 Wait 2489 | 2 153 34 15 235 . 38 141 34 34 136 344 78 86 107 97 779 176 Move 9461 | 46 629 335 300 552 118 487 492 1273 445 778 1112 152 227 377 514 1026 598 Hop . | . . . . . . . . . . . . . . . . . . Pick Up 127 | 5 23 5 6 11 2 4 1 6 2 21 10 6 1 3 3 10 8 Fast Attach 51 | 6 1 . 1 6 . . . 3 . 8 1 6 4 2 . 10 3 Attach 31 | . . . 2 5 2 . . . 1 6 1 2 . 2 2 4 4 Detach 3 | . . . . 1 . . . . . 1 . . 1 . . . . Swap 139 | . 10 2 8 13 . 8 5 . 6 16 14 1 2 7 19 14 14 Drop 175 | . 17 7 12 22 1 8 2 9 3 25 13 12 4 5 1 23 11 Fire 336 | 2 57 8 15 46 . 14 17 . 19 53 . 3 5 18 34 31 14 Melee 102 | . . . . . . . . . 3 8 42 . 13 9 8 4 15 Ram 1 | . . . . . . . . . . 1 . . . . . . . Kick . | . . . . . . . . . . . . . . . . . . Crush 1 | . . . . 1 . . . . . . . . . . . . . Escape Stasis 8 | . . . . . . . . . . . 8 . . . . . . Rewire 107 | . . . . . . . . . . . 94 . . 3 . 2 8 Trap . | . . . . . . . . . . . . . . . . . . Miscellaneous 46 | . . . . . . . . . . 3 9 1 1 3 2 9 18 Route ------- -11/Scrapyard -10/Materials (discovered 5 exits: *Mat x3 / *Min / Sub) -10/Mines (discovered 3 exits: *Mat x2 / *Sub) -10/Subcaves (discovered 2 exits: *Mat x2) -8/Materials (discovered 3 exits: *Fac x3) -7/Factory (discovered 6 exits: Fac x4 / *Low x2) -7/Lower Caves -7/Lower Caves (discovered 2 exits: *Fac / [*Zio]) -7/Zion -6/Proximity Caves -6/Factory (discovered 5 exits: *Fac x3 / Low / *Ext) -6/Extension (discovered 2 exits: *Fac / [*Cet]) -6/Cetus (discovered 2 exits: *Fac / [*Arc]) -6/Archives (discovered 3 exits: *Fac / [*Hub x2]) -5/Factory -4/Factory -3/Research (discovered 2 exits: [*Res] / *Arm) -3/Armory History --------- Turn | Location | Event 13 | -11/Scrapyard | Discovered new exit (range 15) 93 | -11/Scrapyard | Entered Materials 210 | -10/Materials | Discovered new exit (range 13) 310 | -10/Materials | Build established: Mutant 450 | -10/Materials | Discovered new exit (range 6) 693 | -10/Materials | Derelicts attacked the area 840 | -10/Materials | Discovered new exit (range 15) 1197 | -10/Materials | Identified exit to Subcaves 1235 | -10/Materials | Learned 2 Mines zone layouts 1264 | -10/Materials | Learned Storage trap positions 1285 | -10/Materials | Identified exit to Mines 1297 | -10/Materials | Identified exit to Materials 1298 | -10/Materials | Learned location of 2 exits from Mines 1299 | -10/Materials | Learned 4 Subcaves zone layouts 1301 | -10/Materials | Loaded intel: 18 trap records 1315 | -10/Materials | Learned location of Storage (-9) 1338 | -10/Materials | Learned 2 Materials zone layouts 1428 | -10/Materials | Entered Mines 1516 | -10/Mines | Received a Rocket Launcher from a helpful Derelict 1657 | -10/Mines | Learned location of Mines (-9) 1750 | -10/Mines | Found a hidden stash of uninstalled traps 1823 | -10/Mines | Assisted by bots powering up and referring to "LRC-V3" 2013 | -10/Mines | Entered Subcaves 2014 | -10/Subcaves | Approached by a straggling Scientist 2014 | -10/Subcaves | Identified exit to Materials 2026 | -10/Subcaves | Visited Clippyterm 2030 | -10/Subcaves | Learned Research security intel 2030 | -10/Subcaves | Learned Factory stockpile data 2041 | -10/Subcaves | Discovered exit to Materials (range 12) 2070 | -10/Subcaves | Core integrity fell below 50% 2331 | -10/Subcaves | Visited 4L-MR0's lab 2352 | -10/Subcaves | Found Meta Core 2365 | -10/Subcaves | Found Prototype Special Melee Weapon 2557 | -10/Subcaves | Entered Materials 2557 | -8/Materials | Evolved 4 slots: Propulsion x2, Utility x1, Weapon x1 2558 | -8/Materials | Identified exit to Factory 2858 | -8/Materials | Build established: Scavenger-Tank 3463 | -8/Materials | Build established: Scavenger-Gunner 3611 | -8/Materials | Repaired Imp. Ion Engine 3642 | -8/Materials | Learned 4 Factory zone layouts 3742 | -8/Materials | Learned location of 3 exits from Factory 3743 | -8/Materials | Learned Factory trap positions 3770 | -8/Materials | Learned location of 2 exits from Factory 3865 | -8/Materials | Entered Factory 3865 | -7/Factory | Evolved 2 slots: Utility x1, Weapon x1 3866 | -7/Factory | Identified exit to Factory 3867 | -7/Factory | Identified exit to Lower Caves 3869 | -7/Factory | Loaded intel: 99 trap records 4059 | -7/Factory | Entered Lower Caves 4073 | -7/Lower Caves | Encountered a Warlord checkpoint 4133 | -7/Lower Caves | Learned Factory stockpile data 4137 | -7/Lower Caves | Spotted B-75 Beast 4166 | -7/Lower Caves | Destroyed B-75 Beast 4172 | -7/Lower Caves | Build established: Scavenger-Tank 4438 | -7/Lower Caves | Learned Factory terminal intel 4797 | -7/Lower Caves | Attracted the attention of an 0b10 checkpoint 4892 | -7/Lower Caves | Discovered new exit (range 15) 4917 | -7/Lower Caves | Entered another Lower Caves area 4932 | -7/Lower Caves | Discovered exit to Factory (range 8) 5141 | -7/Lower Caves | Learned 4 Factory zone layouts 5454 | -7/Lower Caves | Entered an active Warlord outpost 5486 | -7/Lower Caves | Learned Armory emergency access door positions 5486 | -7/Lower Caves | Learned Research garrison access intel 5787 | -7/Lower Caves | Discovered new exit (range 3) 5882 | -7/Lower Caves | Entered Zion 6050 | -7/Zion | Discovered new exit (range 11) 6073 | -7/Zion | Found CR-A16's Pointy Stick 6125 | -7/Zion | Learned location of Extension (-6) 6308 | -7/Zion | Received a visual enhancement algorithm 6495 | -7/Zion | Acquired unknown access codes intercepted by a Zionite 6573 | -7/Zion | Gained Derelict followers 6687 | -7/Zion | Given the Hacking Drone Bay 6722 | -7/Zion | Found Prototype Device 6722 | -7/Zion | Identified Hacking Drone Bay 6783 | -7/Zion | Learned location of Warlord (-4) 7914 | -7/Zion | Entered Proximity Caves 7914 | -6/Proximity Caves | Accompanied by 4 allies 8050 | -6/Proximity Caves | Spotted B-75 Beast 8072 | -6/Proximity Caves | Destroyed B-75 Beast 8143 | -6/Proximity Caves | Learned location of 2 exits from Factory 8590 | -6/Proximity Caves | Attracted the attention of an 0b10 checkpoint 8733 | -6/Proximity Caves | Discovered exit to Factory (range 8) 8748 | -6/Proximity Caves | Entered Factory 8748 | -6/Factory | Evolved 2 slots: Weapon x2 8749 | -6/Factory | Identified exit to Extension 8750 | -6/Factory | Identified exit to Lower Caves 8750 | -6/Factory | Identified exit to Factory 8753 | -6/Factory | Loaded intel: 27 terminal locations 9101 | -6/Factory | Garrison activated, responded to threat 9108 | -6/Factory | Build established: Scavenger-Executioner 9173 | -6/Factory | Destroyed 7 combat bots 9598 | -6/Factory | Discovered exit to Factory (range 6) 9660 | -6/Factory | Repaired Arm. Huge Wheel 9957 | -6/Factory | Identified 1B-0RG's Assimilator 9964 | -6/Factory | Assimilating Soldier 5a into Collective. 9969 | -6/Factory | Assimilating Soldier 5b into Collective. 10023 | -6/Factory | Assimilating Hacker 5a into Collective. 10063 | -6/Factory | Attached Meta Core, gained temporary slots: Propulsion, Utility, Weapon 10210 | -6/Factory | Entered Extension 10210 | -6/Extension | Accompanied by 3 allies 10288 | -6/Extension | Assimilating Soldier 5c into Collective. 10400 | -6/Extension | Build established: Scavenger-Mutant 10458 | -6/Extension | Assimilating Guardian 5a into Collective. 10657 | -6/Extension | Assimilating Hacker 5b into Collective. 10787 | -6/Extension | Build established: Mutant 10791 | -6/Extension | Rescued A7 10848 | -6/Extension | Assimilating Soldier 5d into Collective. 10853 | -6/Extension | Rescued a captive Derelict 10855 | -6/Extension | Rescued a captive Derelict 11085 | -6/Extension | Disrupted transfer network 11197 | -6/Extension | Spotted B-75 Beast 11210 | -6/Extension | Spotted B-75 Beast 11211 | -6/Extension | Allies destroyed B-75 Beast 11228 | -6/Extension | Revealed the true nature of CR-A16's Pointy Stick 11229 | -6/Extension | Allies destroyed B-75 Beast 11255 | -6/Extension | Lost 3 allies 11266 | -6/Extension | Assimilating Processor 5a into Collective. 11274 | -6/Extension | Assimilating Processor 5b into Collective. 11299 | -6/Extension | Assimilating Conveyor 5a into Collective. 11452 | -6/Extension | Rescued a captive Derelict 11452 | -6/Extension | Rescued a captive Derelict 11528 | -6/Extension | Build established: Scavenger-Mutant 11682 | -6/Extension | Assimilating Guardian 5b into Collective. 11960 | -6/Extension | First assault squad dispatched 12062 | -6/Extension | Extracted ID and sensor layout for unrecognized location from A7's data core 12075 | -6/Extension | Discovered exit to Factory (range 13) 12077 | -6/Extension | Discovered new exit (range 9) 12094 | -6/Extension | Lost 6 allies 12140 | -6/Extension | Assimilating Soldier 5e into Collective. 12169 | -6/Extension | Rescued a captive Derelict 12169 | -6/Extension | Rescued a captive Derelict 12282 | -6/Extension | Entered Cetus 12282 | -6/Cetus | Accompanied by 13 allies 12310 | -6/Cetus | Spotted Cetus Guard 12311 | -6/Cetus | Spotted Cetus Guard 12315 | -6/Cetus | Spotted Cetus Guard 12316 | -6/Cetus | Spotted Cetus Guard 12328 | -6/Cetus | Allies destroyed Cetus Guard 12331 | -6/Cetus | Allies destroyed Cetus Guard 12338 | -6/Cetus | Allies destroyed Cetus Guard 12339 | -6/Cetus | Allies destroyed Cetus Guard 12369 | -6/Cetus | Lost 3 allies 12419 | -6/Cetus | Discovered new exit (range 17) 12472 | -6/Cetus | Spotted Cetus Guard 12473 | -6/Cetus | Spotted Cetus Guard 12476 | -6/Cetus | Spotted Cetus Guard 12476 | -6/Cetus | Spotted Cetus Guard 12476 | -6/Cetus | Discovered exit to Factory (range 21) 12484 | -6/Cetus | Allies destroyed Cetus Guard 12490 | -6/Cetus | Assimilating Cetus Guard into Collective. 12492 | -6/Cetus | Allies destroyed Cetus Guard 12493 | -6/Cetus | Allies destroyed Cetus Guard 12494 | -6/Cetus | Met Revision 17 12602 | -6/Cetus | Entered Archives 12602 | -6/Archives | Accompanied by 7 allies 12622 | -6/Archives | Assimilating Sentinel 5a into Collective. 12641 | -6/Archives | Discovered new exit (range 22) 12657 | -6/Archives | Discovered exit to Factory (range 15) 12795 | -6/Archives | Discovered new exit (range 19) 13061 | -6/Archives | Entered Factory 13061 | -5/Factory | Accompanied by 8 allies 13061 | -5/Factory | Evolved 2 slots: Power x1, Utility x1 13154 | -5/Factory | Assimilating Soldier 6a into Collective. 13160 | -5/Factory | Assimilating Soldier 6b into Collective. 13184 | -5/Factory | Garrison activated, responded to threat 13277 | -5/Factory | Discovered new exit (range 14) 13285 | -5/Factory | Garrison activated, responded to threat 13661 | -5/Factory | First assault squad dispatched 13720 | -5/Factory | Assimilating Soldier 6c into Collective. 13744 | -5/Factory | Lost 3 allies 13764 | -5/Factory | Entered another Factory area 13764 | -4/Factory | Accompanied by 6 allies 13764 | -4/Factory | Evolved 2 slots: Propulsion x1, Utility x1 13797 | -4/Factory | Central database locked down 13940 | -4/Factory | Discovered new exit (range 15) 13960 | -4/Factory | Assimilating Sentinel 7a into Collective. 14440 | -4/Factory | Assimilating Technician 7a into Collective. 14514 | -4/Factory | First assault squad dispatched 14623 | -4/Factory | Entered Research 14623 | -3/Research | Accompanied by 7 allies 14623 | -3/Research | Evolved 2 slots: Propulsion x1, Utility x1 14625 | -3/Research | Loaded intel: 3 garrison access locations 14823 | -3/Research | Revision forces began assault on 0b10 14878 | -3/Research | Assimilating Warden 8a into Collective. 14969 | -3/Research | Met up with Revision 17++ 15060 | -3/Research | Found Gamma Bomb Array 15089 | -3/Research | Discovered new exit (range 8) 15090 | -3/Research | Discovered new exit (range 15) 15094 | -3/Research | Assimilating Artificer 8a into Collective. 15265 | -3/Research | Assimilating Conveyor 8a into Collective. 15323 | -3/Research | Research terminal network offline 15395 | -3/Research | Spotted Striker 15526 | -3/Research | Spotted Striker 15530 | -3/Research | Spotted Striker 15534 | -3/Research | Allies destroyed Striker 15540 | -3/Research | Assimilating Striker into Collective. 15546 | -3/Research | Assimilating Plague 8a into Collective. 15711 | -3/Research | Found Prototype Launcher 15711 | -3/Research | Identified Tesla Bomb Launcher 15737 | -3/Research | Identified exit to Armory 15828 | -3/Research | Spotted Striker 15839 | -3/Research | Assimilating Master 8a into Collective. 15866 | -3/Research | Lost 3 allies 16394 | -3/Research | Spotted Striker 16397 | -3/Research | Spotted Striker 16550 | -3/Research | Allies destroyed Striker 16620 | -3/Research | Spotted Executioner 16621 | -3/Research | Spotted Striker 16626 | -3/Research | Allies destroyed Striker 16629 | -3/Research | Allies destroyed Executioner 16632 | -3/Research | Spotted Striker 16635 | -3/Research | Spotted Striker 16637 | -3/Research | Assimilating Striker into Collective. 16642 | -3/Research | Assimilating Striker into Collective. 16718 | -3/Research | Entered Armory 16718 | -3/Armory | Accompanied by 7 allies 16766 | -3/Armory | Found Fusion Bomb Launcher 16968 | -3/Armory | First assault squad dispatched 17076 | -3/Armory | Assimilating Artificer 8b into Collective. 17318 | -3/Armory | Assimilating Destroyer 8a into Collective. 17335 | -3/Armory | Assimilating Veteran 8c into Collective. 17358 | -3/Armory | Lost 5 allies 17398 | -3/Armory | High security lockdown imminent 17413 | -3/Armory | Assimilating Master 8b into Collective. 17444 | -3/Armory | Assimilating Master 8c into Collective. 17469 | -3/Armory | Spotted B-86 Titan 17478 | -3/Armory | High security lockdown engaged 17523 | -3/Armory | Assimilating Warden 8b into Collective. 17559 | -3/Armory | Assisted by bots powering up and referring to "LRC-V3" 17579 | -3/Armory | Assimilating Champion 8a into Collective. 17582 | -3/Armory | Assimilating Champion 8b into Collective. 17590 | -3/Armory | Assimilating Champion 8c into Collective. 17598 | -3/Armory | Assimilating Veteran 8m into Collective. 17605 | -3/Armory | Assimilating Swordsman 8a into Collective. 17615 | -3/Armory | Assimilating Archangel 8a into Collective. 17618 | -3/Armory | Spotted Investigator 17622 | -3/Armory | Lost 3 parts (2n1w) 17642 | -3/Armory | Assimilating Rainmaker 8a into Collective. 17648 | -3/Armory | Spotted Executioner 17691 | -3/Armory | Lost 20 allies 17711 | -3/Armory | Core integrity fell below 50% 17740 | -3/Armory | Released all parts (5) 17744 | -3/Armory | Core integrity fell below 20% 17756 | -3/Armory | Destroyed by S-43 Plague with Heavy Machine Gun Last Messages --------------- 17707_ 1B-0RG's Assimilator destroyed. 17709_ Hpw. Tractor Beam destroyed. 17713_ P-80 Master misfires. 17715_ Critical hit (Burn: +26). 17721_ Wheel+ destroyed. 17722_ System corrupted: Heat flow error (+181). 17724_ Wheel+ destroyed. 17725_ Transmission Jammer destroyed. 17728_ Door Terminal disabled. 17735_ Critical hit (Burn: +37). 17737_ Adv. Remote Force Field destroyed. 17738_ Critical hit (Destroy). 17738_ Centrium Heavy Treads destroyed. 17739_ Quantum Reactor destroyed. 17740_ Released Centrium Wheel. 17740_ Released Exp. Matter Compressor. 17740_ Released Meta Core. 17740_ Released Huge Storage Unit. 17740_ Released CR-A16's Behemoth Slayer. 17748_ ALERT: Heavy assault forces dispatched. Map ----- +----------------------------------------------------+ | | | | | | | | | | | | | | | | | | | | | ????????????????????????????????? | | ????????????????????????????????? | | ????????????????????????????????? | | ????????????????????????????????? | | ????????????????????????????????? | | ????????????????????????????????? | | ????????????????????????????????? | | ????????????????????????????????? | | ????????????????????????????????? | | ????????????????????????????????? | | ????????????????????????????????? | | ????????????????????????????????? | | ????????????????????????????????? | | ???????#####????????????????????? | | ???????# s #????????????????????? | | ???????#@s #????????????????????? | | ???????###s######???????????????? | | ?????????# +???????????????? | | ?????????# #???????????????? | | ?????????# #???????????????? | | ?????????# #???????????????? | | ??#"""???# #???????????????? | | ??#T ###[ #???????????????? | | ??# !]* #???????????????? | | ??# !]![| #???????????????? | | ??########=!]] #???????????????? | | ?????????#!!![ #########???????? | | ?????????#!!/ ????? | | ?????????# ????? | | ?????????# ????? | | ???????### ?????? | | ???????# ?????? | | ???????" ?????? | | ???????" ?????? | | ???????" ############## ??????? | | ???????# #????????????????????? | | ???????### #????????????????????? | | ?????????# #????????????????????? | | ?????????# #????????????????????? | | ?????????# #????????????????????? | +----------------------------------------------------+ Best States ------------- Heat Dissipation 75 Energy Generation 37 Energy Capacity 1030 Matter Stores 1050 Matter Capacity 1050 Sight Range 16 Terrain Scan Density 10 Jamming Range 12 Armor Coverage 675 Resistance: TH 15 Point Defense Rating 160 Evasion (%) 40 Recoil Reduction 4 Item Schematics ----------------- Arm. Huge Wheel | -6/Factory | Hacked Robot Schematics ------------------ None Fabricated ------------ Nothing Repaired ---------- Imp. Ion Engine | 32% | -8/Materials Arm. Huge Wheel | 36% | -6/Factory Studied --------- Lrn. Missile Launcher | -4/Factory | Hacked Wheel | -4/Factory | Hacked Alien Tech Used ----------------- None Achievements -------------- None Challenges ------------ None Game ------ Seed HeartBeamPit Manual? 0 Play Time 02:07:13 Cumulative 1650.8 hours Start 2026.03.23 @ 13:27:11 End 2026.03.24 @ 02:08:09 Sessions 3 Manual Loads 0 Difficulty Rogue Special Mode None Game No. 1178 Rogue 1138 Adventurer 40 Explorer 0 Win Type - Total 215 Types 99/11/74/2/2/4/16/2/1/4 Lore% 98 Gallery% 96 Achievement% 86 Wizard Run 0 Options --------- Layout 0 ASCII 0 Keyboard 0 Movement Numpad Keybinds 0 Fullscreen 0 Font 20/Terminus Map View 76x50 Zoom Use 0% Tactical HUD 1 Map Filters NONE Filters NONE Steam 1 RUN: 5bbe5448-44db-4ee5-b65d-7d4375a45d21